Cogmind - Beta 11.1 @@@ ROGUE MODE // 2022.11.26 @ 14:47:32 Player: Pitt Result: Destroyed by G-34 Mercenary with Small Laser Performance ------------- Evolutions (1) 500 Regions Visited (2) 400 Robots Destroyed (32) 160 Value Destroyed (677) 677 Prototype IDs (2) 40 Alien Tech Used (0) 0 Bonus (0) 0 TOTAL SCORE: 1777 Bonus ------- None Cogmind --------- Core Integrity 0/400 Matter 150/300 Energy 271/280 System Corruption 0% Temperature Cool (6) Movement Walking (120) Location -9/Materials Parts ------- > --- POWER (1) -------- Cooled Ion Engine > --- PROPULSION (3) --- Aluminum Leg Aluminum Leg > --- UTILITY (3) ------ Cooling System Small Storage Unit > --- WEAPON (2) ------- Medium Laser Medium Laser > --- INVENTORY (8) ---- Cooled Ion Engine Flight Unit Improved Flight Unit Improved Flight Unit Weight Redist. System Weight Redist. System Grenade Launcher Datajack Peak State ------------ > --- POWER ------------ Cooled Ion Engine > --- PROPULSION ------- Compact Wheel Compact Wheel Compact Wheel > --- UTILITY ---------- Cooling System Small Storage Unit Improved Terrain Scanner > --- WEAPON ----------- Datajack Mace > --- INVENTORY -------- Cooled Ion Engine Cooled Ion Engine Light Treads Improved Flight Unit Improved Flight Unit Medium Laser Medium Laser Grenade Launcher [Rating: 16] Favorites ----------- Power Ion Engine Engine Ion Engine Propulsion Compact Wheel Leg Aluminum Leg Wheel Compact Wheel Utility Small Storage Unit Device Improved Terrain Scanner Storage Small Storage Unit Weapon Medium Laser Energy Gun Medium Laser Ballistic Gun Assault Rifle Launcher Grenade Launcher Impact Weapon Mace Special Melee Weapon Datajack Build | -11 -10 -9 ------- Run | Scr Mat Mat Slots Evolved 2 | . . 2 Power . | . . . Propulsion 1 | . . 1 Utility 1 | . . 1 Weapon . | . . . Parts Attached 48 | 7 14 27 Power 9 | 1 3 5 Engine 9 | 1 3 5 Core . | . . . Reactor . | . . . Propulsion 9 | 2 4 3 Treads . | . . . Leg 6 | 2 2 2 Wheel 3 | . 2 1 Hover . | . . . Flight . | . . . Utility 7 | 2 2 3 Device 5 | 1 1 3 Storage 2 | 1 1 . Processor . | . . . Hackware . | . . . Protection . | . . . Artifact . | . . . Weapon 23 | 2 5 16 Energy Gun 11 | 2 1 8 Energy Cannon . | . . . Ballistic Gun 4 | . 4 . Ballistic Cannon . | . . . Launcher 1 | . . 1 Special Weapon . | . . . Impact Weapon 4 | . . 4 Slashing Weapon . | . . . Piercing Weapon . | . . . Special Melee Weapon 3 | . . 3 Unidentified Prototypes 2 | . . 2 Parts Lost 12 | . 6 6 Power 1 | . 1 . Propulsion 5 | . 2 3 Utility 2 | . . 2 Weapon 4 | . 3 1 Highest Loss Streak 5 | . 5 3 To Critical Strikes . | . . . Average Slot Usage (%) 93 | . 95 92 Engine 11 | . 13 11 Leg 7 | . 21 2 Wheel 21 | . 5 28 Device 17 | . 14 18 Storage 11 | . 14 11 Energy Gun 11 | . 19 7 Ballistic Gun 10 | . 6 11 Naked Turns . | . . . Heaviest Build 21 | 15 15 21 Greatest Support 48 | 20 32 48 Greatest Overweight (x) 6 | . 2 6 Average Overweight (x) . | . . . Largest Inventory Capacity 8 | 8 8 8 Average Capacity 7 | 7 8 8 Most Carried 8 | 8 8 8 Average Carried 7 | 3 7 7 Final Capacity 8 | 8 8 8 Final Carried 8 | 8 8 8 Class Distribution -------------------- 55% | Mutant 44% | Scavenger-Mutant Dominant Class ---------------- Mutant | -10/Materials Scavenger-Mutant | -9/Materials Resources | -11 -10 -9 ----------- Run | Scr Mat Mat Matter Collected 594 | 270 71 253 Remotely . | . . . Salvage Created 944 | 110 281 553 Parts 55 | 9 11 35 Haulers Intercepted 3 | . . 3 Recyclers Shooed 3 | 1 1 1 Parts Field Recycled . | . . . Retrieved Matter . | . . . Parts Self-Destructed . | . . . Prevented . | . . . Kills | -11 -10 -9 ------- Run | Scr Mat Mat Combat Hostiles Destroyed 21 | . 8 13 Melee 1 | . 1 . Guns 13 | . 6 7 AOE 5 | . . 5 Classes Destroyed 10 | 2 2 6 Worker 3 | . . 3 Builder 1 | . . 1 Tunneler 2 | 2 . . Hauler 3 | . . 3 Recycler 1 | 1 . . Watcher 1 | . . 1 Swarmer 6 | . 2 4 Grunt 13 | . 6 7 Duelist 1 | . . 1 Sentry 1 | . . 1 Best Kill Streak 6 | 3 2 6 Combat Bots Only 5 | . 2 5 Max Kills in Single Turn 3 | 1 1 3 Gunslinging . | . . . Exploded 3 | . . 3 Melee 1 | . 1 . Uniques/NPCs Destroyed . | . . . Combat | -11 -10 -9 -------- Run | Scr Mat Mat Damage Taken 1829 | . 789 1040 Core 580 | . 179 401 Absorbed by Shields . | . . . Core Remaining (%) 64 | 100 28 . Volleys Fired 83 | 6 42 35 Largest 2 | 2 2 2 Hottest 100 | 100 100 100 Shots Fired 141 | 12 69 60 Gun 138 | 12 69 57 Cannon . | . . . Launcher 3 | . . 3 Special . | . . . Kinetic 26 | . 16 10 Thermal 112 | 12 53 47 Explosive 3 | . . 3 Electromagnetic . | . . . Robot Hit Streak 9 | 4 9 8 Robot Miss Streak 3 | 3 3 1 Penetration Max . | . . . Secondary Targets . | . . . Shots Hit Robots 104 | 6 41 57 Core Hits 51 | 4 15 32 Critical Kills 1 | . . 1 Critical Parts Destroyed 1 | . . 1 Critical Strikes 13 | 1 5 7 Burn 11 | 1 5 5 Smash 2 | . . 2 Melee Attacks 20 | . . 20 Impact 11 | . . 11 Slashing . | . . . Piercing . | . . . Sneak Attacks 2 | . . 2 Combat Hostiles . | . . . Follow-up Attacks . | . . . Damage Inflicted 1886 | 76 546 1264 Guns 1177 | 76 542 559 Cannons . | . . . Explosions 480 | . . 480 Melee 225 | . . 225 Ramming 4 | . 4 . Kinetic 194 | . 111 83 Thermal 983 | 76 431 476 Explosive 480 | . . 480 Electromagnetic . | . . . Impact 225 | . . 225 Slashing . | . . . Piercing . | . . . Highest Corruption . | . . . Average Corruption . | . . . Corruption Purged . | . . . Corruption Blocked . | . . . Overload Shots . | . . . Overflow Damage 179 | . . 179 Projectiles . | . . . Explosions 127 | . . 127 Melee 52 | . . 52 Knockbacks . | . . . Impact . | . . . Kinetic . | . . . Secondary . | . . . Self-Inflicted Damage 250 | . . 250 Shots 4 | . . 4 Rammed . | . . . Targets Rammed 1 | . 1 . Kicked 1 | . 1 . Crushed . | . . . Highest Temperature 542 | 198 542 73 Average Temperature 149 | 101 192 41 Received Heat Transfer 540 | . 294 246 Effects 12 | . 12 . Shutdowns 2 | . 2 . Energy Bleed 1 | . 1 . Interference 3 | . 3 . Short Circuit 1 | . 1 . Damage (major) 4 | . 4 . Damage (core) 1 | . 1 . Siege Activations . | . . . Robots Corrupted . | . . . Combat Hostiles . | . . . Parts Fried 1 | . . 1 Impact Corruptions 2 | . . 2 Robots Melted 1 | . 1 . Combat Hostiles 1 | . 1 . Parts Melted 9 | . 4 5 Heat Transferred 3653 | 296 1581 1776 Parts Sabotaged . | . . . Parts Stolen . | . . . Parts Stripped . | . . . Power Chain Reactions . | . . . Missiles Intercepted . | . . . Alert | -11 -10 -9 ------- Run | Scr Mat Mat Peak Influence 383 | 15 208 383 Initial 13 | . 9 13 Average 90 | 5 81 102 Maximum Alert Level 1 | . 1 1 Low Security (%) 86 | 100 96 81 Level 1 13 | . 3 18 Level 2 . | . . . Level 3 . | . . . Level 4 . | . . . Level 5 . | . . . High Security . | . . . Max Security . | . . . Squads Dispatched 3 | . 1 2 Investigation 1 | . . 1 Extermination . | . . . Reinforcement 2 | . 1 1 Assault . | . . . Garrison . | . . . Intercept . | . . . Searches Triggered . | . . . Construction Impeded . | . . . Haulers Reinforced . | . . . Active Scanning Responses . | . . . Cargo Convoy Interrupts . | . . . Stealth | -11 -10 -9 --------- Run | Scr Mat Mat Distress Signals 1 | . . 1 Communications Jammed . | . . . Distress Signals . | . . . Times Spotted 37 | . 13 24 Peak Tracking Total 9 | . 5 9 Tactical Retreats 4 | . 2 2 Traps | -11 -10 -9 ------- Run | Scr Mat Mat Traps Triggered . | . . . Indirectly . | . . . Trap Hack Attempts . | . . . Triggered . | . . . Disarmed . | . . . Reprogrammed . | . . . Reused . | . . . Traps Extracted . | . . . Installed . | . . . Triggered . | . . . Machines | -11 -10 -9 ---------- Run | Scr Mat Mat Machines Disabled 2 | . . 2 Max in Single Turn 2 | . . 2 Machines Sabotaged . | . . . Garrisons Compromised . | . . . Overloaded Fab Kills . | . . . Hacking | -11 -10 -9 --------- Run | Scr Mat Mat Machines Accessed 9 | . 4 5 Terminals 8 | . 4 4 Fabricators . | . . . Repair Stations 1 | . . 1 Recycling Units . | . . . Scanalyzers . | . . . Garrison Access . | . . . Total Hacks 33 | . 18 15 Successful 14 | . 8 6 Failed 19 | . 10 9 Catastrophic 1 | . 1 . Database Lockouts . | . . . Manual 17 | . 12 5 Terminals 30 | . 18 12 Fabricators . | . . . Repair Stations 3 | . . 3 Recycling Units . | . . . Scanalyzers . | . . . Garrison Access . | . . . Terminal Hacks 8 | . 4 4 Level Access Points 1 | . . 1 Emergency Access Points 1 | . . 1 Terminal Index 1 | . 1 . Alert Level 1 | . 1 . Locate Traps 3 | . 2 1 Zone Layout 1 | . . 1 Fabricator Hacks . | . . . Repair Station Hacks 1 | . . 1 Scan Component 1 | . . 1 Recycling Unit Hacks . | . . . Scanalyzer . | . . . Garrison Access Hacks . | . . . Unauthorized Hacks 5 | . 4 1 Terminals 5 | . 4 1 Track 1 | . . 1 Botnet 3 | . 3 . Operators 1 | . 1 . Fabricators . | . . . Repair Stations . | . . . Recycling Units . | . . . Scanalyzers . | . . . Garrison Access . | . . . Data Cores Recovered . | . . . Used . | . . . Hacking Detections 9 | . 4 5 Full Trace Events 1 | . . 1 Feedback Events . | . . . Feedback Blocked . | . . . Robot Schematics Acquired . | . . . Robots Built . | . . . Authchips . | . . . Time . | . . . Total Robot Build Rating . | . . . Part Schematics Acquired . | . . . Parts Built . | . . . Authchips . | . . . Time . | . . . Total Part Build Rating . | . . . Parts Repaired . | . . . Time . | . . . Parts Recycled . | . . . Recycled Matter . | . . . Retrieved Matter . | . . . Retrieved Components . | . . . Parts Scanalyzed . | . . . Part Schematics Acquired . | . . . Parts Damaged . | . . . Bothacking | -11 -10 -9 ------------ Run | Scr Mat Mat Used RIF Installer . | . . . Robots Hacked 3 | . . 3 Non-combat 3 | . . 3 Combat . | . . . Robot Hacks Applied 5 | . . 5 parse_system 3 | . . 3 no_distress 2 | . . 2 Relay Couplers Released . | . . . Fabnet Peak Effective % . | . . . Robots Rewired . | . . . Allies Hacked . | . . . Hacks Repelled . | . . . Allies | -11 -10 -9 -------- Run | Scr Mat Mat Total Allies . | . . . Largest Group . | . . . Highest-Rated Group . | . . . Highest-Rated Ally . | . . . Total Orders . | . . . Ally Attacks . | . . . Total Damage . | . . . Kills . | . . . Allies Corrupted . | . . . Allies Melted . | . . . Intel | -11 -10 -9 ------- Run | Scr Mat Mat Robot Analysis Total . | . . . Derelict Logs Recovered . | . . . Drone Launches . | . . . Drone Recoveries . | . . . Exploration | -11 -10 -9 ------------- Run | Scr Mat Mat Turns Passed 1824 | 118 482 1224 Spaces Moved 744 | 69 259 416 Core 7 | 3 2 2 Treads . | . . . Legs 326 | 66 191 69 Wheels 411 | . 66 345 Hover . | . . . Flight . | . . . Fastest Speed 50 | 50 100 100 Average Speed 109 | 116 115 104 Slowest Speed 350 | 120 190 350 Overloaded Moves . | . . . Propulsion Burnouts . | . . . Robots Hopped . | . . . Cave-ins Triggered . | . . . Exploration Rate (%) 27 | 4 40 37 Regions Visited 2 Branch Regions . Pre-discovered Areas . | . . . Known Exits Taken . | . . . Unknown Exits Taken 2 | 1 1 . Scrap Searched . | . . . Spaces Dug . | . . . Terrain Destroyed 44 | . . 44 Melee . | . . . Projectile . | . . . AOE 44 | . . 44 Terrain Rammed . | . . . Walls Destroyed . | . . . Machines Disabled . | . . . Actions | -11 -10 -9 --------- Run | Scr Mat Mat Total 1578 | 91 371 1116 Wait 636 | 2 41 593 Move 742 | 68 258 416 Hop . | . . . Pick Up 28 | 8 6 14 Fast Attach 17 | 7 4 6 Attach 7 | . 3 4 Detach 1 | . 1 . Swap 24 | . 7 17 Drop 19 | . 8 11 Fire 83 | 6 42 35 Melee 20 | . . 20 Ram . | . . . Kick 1 | . 1 . Crush . | . . . Escape Stasis . | . . . Rewire . | . . . Trap . | . . . Miscellaneous . | . . . Route ------- -11/Scrapyard -10/Materials -9/Materials (discovered 4 exits: *Mat x3 / [*Min]) History --------- Turn | Location | Event 16 | -11/Scrapyard | Discovered new exit (range 16) 119 | -11/Scrapyard | Entered Materials 314 | -10/Materials | Build established: Mutant 500 | -10/Materials | Core integrity fell below 50% 542 | -10/Materials | Lost 5 parts (1p2n2w) 557 | -10/Materials | Discovered new exit (range 13) 601 | -10/Materials | Entered another Materials area 601 | -9/Materials | Evolved 2 slots: Propulsion x1, Utility x1 899 | -9/Materials | Build established: Scavenger-Mutant 1412 | -9/Materials | Discovered new exit (range 8) 1546 | -9/Materials | Build established: Mutant 1547 | -9/Materials | Identified exit to Materials 1655 | -9/Materials | Core integrity fell below 50% 1670 | -9/Materials | Core integrity fell below 20% 1710 | -9/Materials | Lost 3 parts (2n1u) 1825 | -9/Materials | Destroyed by G-34 Mercenary with Small Laser Last Messages --------------- 01764_ Dropped Lgt. Treads. 01765_ Acquired Weight Redist. System. 01769_ Dropped Cld. Ion Engine. 01769_ Acquired Weight Redist. System. 01772_ Acquired 46 matter. 01776_ Jacked W-16 Scout... >>parse_system Reading system data... 01803_ Connecting with Repair Station... >>Scan(Grenade Launcher) Scanning Grenade Launcher... Ready to Repair: Grenade Launcher Rating: 1 Time: 26 01803_ ALERT: Suspicious activity at Repair Station M001. Dispatching Investigation squad. 01818_ G-34 Mercenary suffers critical hit (Burn). 01821_ Aluminum Leg melted. 01821_ G-34 Mercenary destroyed. Map ----- +----------------------------------------------------+ | | | | | | | | | | | | | | | | | | | | | | | | | | | | | | | | | ????????????????????##########???????????????? | | ????????????????????# #???????????????? | | ????????????????????#""" """ #???????????????? | | ????????????????????#"R """ #???????????????? | | ????????#???????????#""" """ #???????????????? | | ????????????????????# #???????????????? | | ??????#?????????????# """ #???????????????? | | ??????????????? ????# """ #???????????????? | | ???????##??? ?? ?? # """ #???????????????? | | ??????????? ??? ???#@[g #???????????????? | | ???????????####+########+#############+#####?? | | ???#??????## =! ? | | ???????????# < !!! ? | | ?########??# ! * ! ? | | ?#= #??####+############## #????? | | ?# """ #??# #???????? """"" #????? | | ## Y" #??# #????????? """"" #????? | | ?# """ #### [ #????????? """"?????????? | | ?# + + ##????"????? ?????????? | | ?# ####^ ^*^ #??????????? ????????? | | ?####/###??# [% #????? ?????? ????????? | | ???# ##### / #????????????####????????? | | ???# T [!%/* == ^ #???????? ???????????????? | | ???# #####%* #?????? ?????????????????? | | ???## ##???####/#####??????? ????????????????? | | ????# #?#???# # # #?#????#?? ????????????????? | | ????# #????#### # #???#??????????????????????? | | ??#?# ##??????# ####??????? ?????????????????? | | ???## #######?# ###########??????????????????? | | ????# ## #??# +??? ???????#??#???? | | ????# T #?## ##?????#?#?????#????? | | ????#### ##?# """ #??????#??#?????????? | | ???????## ##??# """ #?#########????#????? | | ??#????## ##??# """ [ #??# #?????##### | +----------------------------------------------------+ Best States ------------- Heat Dissipation 50 Energy Generation 14 Energy Capacity 280 Matter Stores 300 Matter Capacity 300 Sight Range 16 Terrain Scan Range 16 Terrain Scan Density 10 Evasion (%) 55 Item Schematics ----------------- None Robot Schematics ------------------ None Fabricated ------------ Nothing Alien Tech Used ----------------- None Achievements -------------- None Challenges ------------ None Game ------ Seed DiametricSignalLaser Manual? 0 Play Time 00:23:47 Cumulative 133.9 hours Start 2022.11.26 @ 13:29:38 End 2022.11.26 @ 14:47:32 Sessions 1 Manual Loads 0 Difficulty Rogue Special Mode None Game No. 211 Rogue 211 Adventurer 0 Explorer 0 Win Type - Total 0 Types 0/0/0/0/0/0/0/0/0 Lore% 49 Gallery% 53 Achievement% 37 Wizard Run 0 Options --------- ASCII 0 Keyboard 0 Movement Mouse Keybinds 0 Fullscreen 1 Font 12/Smallcaps Map View 83x54 Tactical HUD 1 Map Filters NONE Filters NONE Steam 1 RUN: 1f7c6fd1-577d-48c0-bbe5-2910639a6823